bitfinex-derivatives/quotes_SOLF0:USTF0_20250714
["timestamp","ask_amount","ask_price","bid_price","bid_amount"]
[1752479408135,9.5688,166.94,166.9,5.9899]
[1752479408324,9.5688,166.94,166.92,3.42]
[1752479408629,3.58,166.94,166.91,3.42]
[1752479408831,3.58,166.93,166.92,3.42]
[1752479409727,5.989,166.94,166.92,3.42]
[1752479409924,178.3,166.96,166.92,3.1650235]
[1752479410129,178.3,166.96,166.94,3.42]
[1752479410326,3.58,166.95,166.94,3.42]
[1752479410829,178.3,166.96,166.94,3.42]
[1752479411134,517.9,166.98,166.94,3.42]
[1752479411135,3.58,166.99,166.95,3.42]
[1752479411527,9.5672,166.99,166.95,3.42]
[1752479412430,3.58,166.99,166.96,3.42]
[1752479412631,3.58,166.99,166.97,3.42]
[1752479412827,3.58,166.99,166.98,3.42]
[1752479413731,9.5672,166.99,166.96,3.42]
[1752479413932,3.58,166.98,166.95,3.42]
[1752479414432,3.58,166.97,166.95,3.42]
[1752479414632,3.58,166.97,166.92,3.42]
[1752479414826,3.58,167.0,166.94,3.42]
[1752479415033,178.26,167.01,166.97,3.42]
[1752479415427,178.26,167.01,166.97,6.5850235]
[1752479415628,178.26,167.01,166.98,9.407]
[1752479415829,6.7450235,167.04,166.98,3.42]
[1752479416231,6.7450235,167.04,166.98,9.4072]
[1752479416232,3.58,167.02,166.98,9.4072]
[1752479416430,3.58,167.02,166.99,3.42]
[1752479416932,9.5659,167.02,167.0,3.42]
[1752479417136,3.58,167.02,167.01,3.42]
[1752479417332,181.3450235,167.05,167.01,3.42]
[1752479417532,3.58,167.03,167.01,3.42]
[1752479417734,3.58,167.02,167.01,3.42]
[1752479418438,9.5659,167.02,166.98,3.42]
[1752479419726,3.58,167.0,166.93,3.1650235]
[1752479419932,3.58,167.0,166.94,3.42]
[1752479420436,9.5672,166.99,166.95,3.42]
[1752479420832,5.9867,167.0,166.95,5.9881]
[1752479421029,5.9867,167.0,166.96,3.42]
[1752479421231,9.5667,167.0,166.96,3.42]
[1752479421432,5.9871,166.99,166.96,3.42]
[1752479421633,3.58,167.0,166.96,3.42]
[1752479422035,6.7450235,166.99,166.88,3.1650235]
[1752479422235,6.7450235,166.99,166.84,517.68]
[1752479422236,3.58,166.98,166.97,3.42]
[1752479423140,9.5677,166.98,166.97,3.42]
[1752479424438,9.5677,166.97,166.96,3.42]
[1752479425648,3.58,166.97,166.96,3.42]
[1752479428148,9.5677,166.97,166.96,3.42]
[1752479430852,5.9877,166.97,166.96,3.42]
[1752479431353,9.5677,166.97,166.96,3.42]
[1752479432950,9.1524235,166.98,166.96,3.42]
[1752479433256,6.7450235,167.0,166.97,3.42]
[1752479433452,3.1650235,167.04,166.97,3.42]
[1752479433654,3.58,167.03,166.99,5.9867]
[1752479433850,3.58,167.03,167.0,3.42]
[1752479434059,3.1650235,167.04,167.01,3.42]
[1752479434260,3.58,167.02,167.01,3.42]
[1752479434558,3.1650235,167.04,166.99,3.42]
[1752479434559,3.58,167.01,166.99,3.42]
[1752479434759,3.58,167.01,167.0,3.42]
[1752479435654,3.58,167.01,166.98,9.4072]
[1752479435862,3.58,166.99,166.98,3.42]
[1752479436260,9.5466,167.0,166.99,3.44]
[1752479437251,3.56,167.0,166.99,3.44]
[1752479439058,6.7250235,167.02,166.99,3.44]
[1752479439253,3.56,167.01,167.0,3.44]
[1752479439760,3.56,167.01,166.94,3.1650235]
[1752479439761,3.56,167.0,166.9,3.44]
[1752479439962,6.7250235,166.99,166.93,3.44]
[1752479440265,12.7122235,166.99,166.93,3.44]
[1752479440863,6.7250235,166.99,166.93,3.44]
[1752479441063,3.56,166.98,166.96,3.44]
[1752479441262,3.56,166.98,166.97,3.44]
[1752479442665,3.56,166.98,166.95,5.9882]
[1752479442961,3.56,166.97,166.96,3.44]
[1752479443160,3.56,166.98,166.97,3.44]
[1752479444762,3.1650235,167.01,166.93,3.44]
[1752479445062,9.1513235,167.01,166.95,3.44]
[1752479445262,12.7113235,167.01,166.95,3.44]
[1752479445869,12.7113235,167.01,166.97,5.9875]
[1752479446065,12.7113235,167.01,166.98,3.44]
[1752479447367,3.56,167.0,166.99,3.44]
[1752479449259,12.7113235,167.01,167.0,3.44]
[1752479450268,6.7250235,167.01,167.0,3.44]
[1752479450669,181.0450235,167.04,167.0,3.44]
[1752479450869,3.56,167.02,167.0,3.44]
[1752479451070,3.56,167.02,167.01,3.44]
[1752479451465,6.7250235,167.02,166.99,3.44]
[1752479451768,3.56,167.0,166.98,5.987]
[1752479451967,3.56,166.99,166.98,9.427]
[1752479452766,5.9859,167.02,166.99,9.4267]
[1752479452970,3.56,167.02,167.0,3.44]
[1752479453172,3.56,167.02,167.01,3.44]
[1752479453963,9.5459,167.02,166.99,5.9868]
[1752479454168,3.56,167.01,167.0,3.44]
[1752479454468,3.56,167.02,167.01,3.44]
[1752479456772,9.5458,167.02,167.01,3.44]
[1752479457577,9.5458,167.02,167.0,3.44]
[1752479457875,9.5462,167.01,167.0,3.44]
[1752479461076,3.56,167.01,167.0,3.44]
[1752479461275,9.1509235,167.02,167.0,3.44]
[1752479461479,12.7109235,167.02,167.01,3.44]
[1752479462477,3.56,167.01,166.96,3.44]
[1752479462682,3.56,166.99,166.96,3.44]
[1752479463080,9.547,166.99,166.96,3.44]
[1752479463281,3.56,166.99,166.97,3.44]
[1752479463580,3.56,166.97,166.95,3.44]
[1752479463883,9.5476,166.97,166.96,3.44]
[1752479464885,9.1524235,166.98,166.96,3.44]
[1752479465084,9.1524235,166.98,166.94,4.98924424]
[1752479465085,177.74,167.0,166.97,3.44]
[1752479465587,3.56,167.01,166.97,3.44]
[1752479465887,9.5464,167.01,166.97,3.44]
[1752479466081,3.56,167.01,166.97,3.44]
[1752479466585,9.5462,167.01,166.97,3.44]
[1752479467483,5.9862,167.01,166.97,3.44]
[1752479468081,9.5362,167.01,166.97,3.44]
[1752479468490,5.9862,167.01,166.97,3.44]
[1752479468889,5.9866,167.0,166.97,3.44]
[1752479469085,3.55,167.0,166.97,3.44]
[1752479469384,3.55,166.98,166.94,3.42]
[1752479469589,3.1650235,166.97,166.94,3.42]
[1752479469789,6.7150235,166.97,166.94,3.42]
[1752479470791,5.9883,166.95,166.94,3.42]
[1752479471293,5.988,166.96,166.94,3.42]
[1752479472289,5.988,166.96,166.94,8.40924424]
[1752479472488,5.988,166.96,166.95,3.42]
[1752479473290,5.9876,166.97,166.95,3.42]
[1752479473486,5.04180075,167.03,166.95,3.42]
[1752479473691,3.55,167.02,166.95,3.42]
[1752479473885,3.1650235,167.01,166.95,3.42]
[1752479474087,3.55,166.96,166.93,8.40924424]
[1752479474287,3.55,166.96,166.93,4.98924424]
[1752479474485,5.9886,166.95,166.94,8.40924424]
[1752479475094,9.5386,166.95,166.94,8.40924424]
[1752479475288,9.5386,166.95,166.94,3.42]
[1752479476093,5.9894,166.92,166.91,4.98924424]
[1752479476592,5.9894,166.92,166.91,8.40924424]
[1752479476896,9.5394,166.92,166.91,8.40924424]
[1752479477192,9.1541235,166.93,166.91,8.40924424]
[1752479477390,9.1541235,166.93,166.92,3.42]
[1752479477589,5.9891,166.93,166.92,3.42]
[1752479477788,12.7041235,166.93,166.92,3.42]
[1752479477994,3.55,166.92,166.91,3.42]
[1752479478195,3.55,166.92,166.86,4.98924424]
[1752479478398,5.9904,166.89,166.88,3.42]
[1752479478592,12.7054235,166.89,166.88,3.42]
[1752479479491,3.55,166.88,166.84,4.98924424]
[1752479479696,3.55,166.87,166.86,3.42]
[1752479479894,6.7150235,166.89,166.86,3.42]
[1752479480288,5.9908,166.88,166.86,3.42]
[1752479480689,9.5408,166.88,166.87,3.42]
[1752479481096,9.5408,166.88,166.83,5.9925]
[1752479481394,9.5408,166.88,166.85,3.42]
[1752479481897,3.1650235,166.89,166.85,3.42]
[1752479482092,6.7150235,166.89,166.85,3.42]
[1752479483298,12.7057235,166.89,166.85,3.42]
[1752479484401,9.1557235,166.89,166.85,3.42]
[1752479484699,9.5409,166.88,166.85,3.42]
[1752479485800,3.55,166.88,166.85,3.42]
[1752479486599,3.55,166.87,166.86,3.42]
[1752479487198,5.9915,166.86,166.81,9.1582235]
[1752479487397,9.5415,166.86,166.85,3.42]
[1752479487602,3.55,166.86,166.85,3.42]
[1752479487901,9.5409,166.88,166.85,3.42]
[1752479488098,3.55,166.87,166.86,3.42]
[1752479488300,3.1650235,166.87,166.82,3.42]
[1752479488504,3.55,166.86,166.82,3.42]
[1752479488705,9.5416,166.86,166.82,3.42]
[1752479489205,3.55,166.86,166.82,3.42]
[1752479489406,9.1562235,166.87,166.82,9.4128]
[1752479489602,3.55,166.89,166.82,3.42]
[1752479489802,5.9911,166.88,166.82,3.42]
[1752479490107,3.55,166.87,166.83,3.42]
[1752479490304,3.55,166.89,166.83,3.42]
[1752479490704,3.55,166.87,166.83,3.42]
[1752479491702,6.7150235,166.88,166.83,9.4124]
[1752479491906,6.7150235,166.88,166.84,3.42]
[1752479492602,3.55,166.87,166.84,3.42]
[1752479492807,3.55,166.86,166.85,3.42]
[1752479492999,3.1650235,166.88,166.85,3.42]
[1752479493203,12.7059235,166.88,166.85,3.42]
[1752479493403,3.55,166.87,166.86,3.42]
[1752479495213,3.55,166.87,166.82,5.9928]
[1752479495510,9.5411,166.87,166.85,3.42]
[1752479495702,3.55,166.86,166.85,3.42]
[1752479497312,3.52,166.87,166.86,3.4]
[1752479499514,3.52,166.86,166.84,3.4]
[1752479499712,5.9911,166.87,166.84,3.4]
[1752479499908,3.52,166.86,166.83,3.4]
[1752479500111,3.52,166.85,166.83,3.4]
[1752479500307,3.52,166.87,166.83,3.4]
[1752479500514,3.52,166.87,166.84,5.9922]
[1752479500710,3.1650235,166.88,166.82,3.4]
[1752479501110,12.6765235,166.87,166.83,3.4]
[1752479501405,3.52,166.86,166.83,3.4]
[1752479504220,9.5116,166.86,166.83,3.4]
[1752479504718,3.52,166.86,166.83,3.4]
[1752479505019,3.52,166.85,166.83,3.4]
[1752479505222,3.52,166.86,166.83,3.4]
[1752479505417,3.52,166.85,166.83,3.4]
[1752479505614,9.512,166.85,166.83,3.4]
[1752479506018,3.52,166.85,166.83,3.4]
[1752479506314,5.9918,166.86,166.83,3.4]
[1752479506519,9.5118,166.86,166.83,3.4]
[1752479507114,5.9918,166.86,166.83,3.4]
[1752479507320,3.1650235,166.9,166.83,3.4]
[1752479507523,3.52,166.89,166.83,3.4]
[1752479508317,5.9914,166.87,166.83,3.4]
[1752479508524,3.52,166.87,166.83,3.4]
[1752479509022,5.9916,166.86,166.83,3.4]
[1752479510722,3.52,166.86,166.8,3.4]
[1752479510924,3.1650235,166.85,166.8,3.4]
[1752479511120,3.1650235,166.83,166.8,3.4]
[1752479511318,3.52,166.82,166.8,3.4]
[1752479511716,3.1650235,166.83,166.77,3.4]
[1752479511920,3.52,166.81,166.77,3.4]
[1752479512113,3.1650235,166.83,166.77,3.4]
[1752479512313,6.6850235,166.83,166.77,3.4]
[1752479512818,3.1650235,166.85,166.77,6.5650235]
[1752479513017,3.52,166.85,166.8,3.4]
[1752479513214,3.52,166.83,166.8,3.4]
[1752479514234,9.5129,166.83,166.8,3.4]
[1752479514523,5.9929,166.83,166.8,3.4]
[1752479514723,3.52,166.82,166.8,3.4]
[1752479514920,9.5131,166.82,166.81,3.4]
[1752479515121,3.52,166.84,166.81,3.4]
[1752479515321,3.52,166.83,166.81,3.4]
[1752479516228,9.5127,166.83,166.81,3.4]
[1752479519527,5.9927,166.83,166.81,3.4]
[1752479520128,5.04180075,166.91,166.81,3.4]
[1752479520331,5.04180075,166.94,166.83,3.1650235]
[1752479520528,9.88742451,166.96,166.86,3.4]
[1752479520529,3.52,166.91,166.86,3.4]
[1752479520735,3.52,166.9,166.86,3.4]
[1752479521028,6.6850235,166.96,166.9,3.4]
[1752479521234,8.56180075,166.97,166.92,3.4]
[1752479521529,3.1650235,166.98,166.92,3.4]
[1752479521723,3.52,166.93,166.92,3.4]
[1752479521930,3.52,166.95,166.92,3.4]
[1752479522527,3.52,166.95,166.9,5.99]
[1752479522733,3.52,166.94,166.93,3.4]
[1752479524232,9.5086,166.94,166.93,3.4]
[1752479524645,3.52,166.94,166.88,3.4]
[1752479524950,3.52,166.9,166.89,3.4]
[1752479525850,3.1650235,166.92,166.89,3.4]
[1752479526050,3.59,166.91,166.9,3.43]
[1752479526252,9.58,166.91,166.9,3.43]
[1752479527548,5.9904,166.9,166.84,8.15426774]
[1752479527851,9.5804,166.9,166.89,3.43]
[1752479528554,3.59,166.92,166.89,3.43]
[1752479529055,9.5797,166.91,166.9,3.43]
[1752479529553,3.59,166.91,166.9,3.43]
[1752479529954,9.5797,166.91,166.9,3.43]
[1752479530253,5.9897,166.91,166.9,3.43]
[1752479530650,12.7445235,166.92,166.88,5.9908]
[1752479530952,9.5795,166.92,166.91,3.43]
[1752479532447,5.9898,166.91,166.88,3.43]
[1752479532649,9.5798,166.91,166.88,3.43]
[1752479532956,5.9901,166.9,166.88,3.43]
[1752479533256,3.59,166.91,166.88,3.43]
[1752479533850,9.5798,166.91,166.88,3.43]
[1752479534655,5.9901,166.9,166.88,3.43]
[1752479534955,3.59,166.91,166.88,3.43]
[1752479535657,9.58,166.91,166.88,3.43]
[1752479535958,3.59,166.91,166.86,3.43]
[1752479536151,9.5809,166.88,166.87,3.43]
[1752479536351,3.59,166.88,166.87,3.43]
[1752479537253,3.59,166.87,166.84,3.43]
[1752479537454,3.59,166.87,166.85,3.43]
[1752479537958,3.1650235,166.88,166.85,3.43]
[1752479538155,3.59,166.86,166.85,3.43]
[1752479538859,9.5815,166.86,166.85,3.43]
[1752479539059,3.59,166.86,166.85,3.43]
[1752479542358,3.59,166.85,166.83,3.43]
[1752479542756,3.59,166.86,166.83,5.9923]
[1752479542951,3.59,166.86,166.84,3.43]
[1752479544961,3.59,166.86,166.85,3.43]
[1752479546064,9.5815,166.86,166.82,5.9927]
[1752479546267,9.5815,166.86,166.85,3.43]
[1752479546769,3.59,166.93,166.85,3.43]
[1752479547066,3.59,166.92,166.86,3.43]
[1752479547760,3.59,166.92,166.88,5.9906]
[1752479547963,3.59,166.92,166.89,3.43]
[1752479548354,9.5794,166.92,166.89,3.43]
[1752479549059,3.59,166.91,166.89,3.43]
[1752479549266,3.59,166.89,166.88,3.43]
[1752479549667,3.59,166.9,166.89,3.43]
[1752479549961,3.59,166.91,166.9,3.43]
[1752479550264,3.59,166.91,166.87,3.43]
[1752479550461,5.9897,166.91,166.87,3.43]
[1752479550661,3.1650235,166.89,166.86,3.43]
[1752479550858,3.59,166.86,166.83,3.43]
[1752479551059,3.59,166.87,166.83,3.43]
[1752479551568,3.59,166.87,166.85,3.43]
[1752479551957,3.59,166.86,166.85,3.43]
[1752479553870,9.5809,166.88,166.85,3.43]
[1752479554266,3.59,166.87,166.85,3.43]
[1752479554469,3.59,166.87,166.86,3.43]
[1752479555470,3.59,166.94,166.86,3.43]
[1752479555769,3.59,166.88,166.86,3.43]
[1752479555961,3.59,166.88,166.87,3.41]
[1752479556469,3.45,166.87,166.81,3.41]
[1752479556660,3.45,166.84,166.8,3.41]
[1752479556864,3.45,166.83,166.8,5.9934]
[1752479557060,3.45,166.83,166.82,3.41]
[1752479557865,9.4426,166.83,166.82,3.41]
[1752479558073,3.45,166.83,166.82,3.41]
[1752479559067,3.45,166.84,166.82,3.41]
[1752479559262,3.1650235,166.85,166.82,3.41]
[1752479559470,3.45,166.86,166.82,3.41]
[1752479559669,3.45,166.88,166.82,3.41]
[1752479560069,9.4414,166.87,166.84,3.41]
[1752479560262,3.45,166.86,166.84,3.41]
[1752479560571,3.45,166.87,166.84,3.41]
[1752479560967,3.45,166.88,166.84,3.41]
[1752479561170,3.45,166.88,166.85,3.41]
[1752479562969,3.45,166.89,166.86,3.41]
[1752479563170,3.45,166.88,166.87,3.41]
[1752479563774,9.441,166.88,166.87,3.41]
[1752479565665,3.45,166.9,166.88,3.41]
[1752479566069,3.45,166.92,166.88,3.41]
[1752479566375,3.45,166.92,166.89,3.41]
[1752479566568,3.45,166.92,166.88,3.41]
[1752479566769,9.44,166.91,166.88,3.41]
[1752479567068,180.45,166.93,166.88,3.41]
[1752479567271,177.0,166.93,166.88,3.41]
[1752479567474,3.45,166.92,166.88,3.41]
[1752479567970,3.45,166.92,166.88,9.4005]
[1752479568181,3.45,166.91,166.9,3.41]
[1752479568674,5.9893,166.92,166.87,9.1559235]
[1752479568868,9.4393,166.92,166.91,3.41]
[1752479569267,182.9891,166.93,166.91,3.41]
[1752479569468,177.0,166.93,166.91,3.41]
[1752479569776,3.45,166.94,166.91,3.41]
[1752479569977,3.45,166.94,166.92,3.41]
[1752479570376,3.45,166.93,166.88,3.41]
[1752479570577,3.45,166.92,166.89,3.41]
[1752479571177,9.4396,166.92,166.89,3.41]
[1752479571377,3.45,166.91,166.89,3.41]
[1752479571878,9.4397,166.91,166.9,3.41]
[1752479572776,5.9894,166.92,166.9,3.41]
[1752479573580,9.439,166.93,166.9,3.41]
[1752479573971,5.9895,166.92,166.9,3.41]
[1752479574172,9.4395,166.92,166.91,3.41]
[1752479574479,3.45,166.92,166.91,3.41]
[1752479575978,9.4393,166.92,166.91,3.41]
[1752479576173,3.45,166.91,166.88,3.41]
[1752479576378,5.9893,166.92,166.88,3.41]
[1752479576575,3.45,166.91,166.88,3.41]
[1752479576779,9.4391,166.93,166.89,3.41]
[1752479577083,3.45,166.94,166.89,3.41]
[1752479577469,8.49180075,166.98,166.92,3.1650235]
[1752479577675,3.45,166.98,166.93,3.41]
[1752479578479,3.1650235,166.97,166.86,3.41]
[1752479578777,3.45,166.96,166.9,3.41]
[1752479579572,9.4389,166.94,166.9,3.41]
[1752479580278,3.45,166.92,166.91,3.41]
[1752479580579,3.1650235,166.95,166.92,3.41]
[1752479580786,3.45,166.93,166.92,3.41]
[1752479580985,9.4392,166.93,166.92,3.41]
[1752479582679,3.1650235,166.95,166.92,3.41]
[1752479582680,5.9887,166.94,166.92,3.41]
[1752479583477,5.9884,166.95,166.92,3.41]
[1752479584082,5.9886,166.94,166.92,3.41]
[1752479584474,3.1650235,166.97,166.89,3.1650235]
[1752479584676,5.9894,166.92,166.9,3.41]
[1752479585384,9.4391,166.93,166.9,3.41]
[1752479586787,3.1650235,166.95,166.87,3.1650235]
[1752479586983,3.5,166.93,166.85,4.98924424]
[1752479587182,3.5,166.93,166.84,4.98924424]
[1752479587480,5.9898,166.91,166.86,3.59]
[1752479587676,3.5,166.94,166.86,8.57924424]
[1752479587880,3.5,166.91,166.87,3.59]
[1752479588484,3.5,166.93,166.87,3.59]
[1752479589182,9.4893,166.93,166.87,3.59]
[1752479589381,3.1650235,166.94,166.87,3.59]
[1752479589584,3.5,166.95,166.89,3.59]
[1752479590186,5.988,166.96,166.91,3.59]
[1752479590689,9.4876,166.97,166.91,5.9897]
[1752479590880,9.4876,166.97,166.92,3.59]
[1752479591076,9.4876,166.97,166.92,9.5793]
[1752479591282,9.1523235,166.98,166.92,3.59]
[1752479591476,5.9873,166.98,166.92,3.59]
[1752479591684,6.6650235,166.99,166.9,3.1650235]
[1752479591880,3.5,166.98,166.94,3.59]
[1752479592588,3.5,166.97,166.94,3.59]
[1752479592992,8.20682425,166.99,166.94,5.9885]
[1752479593186,3.5,166.98,166.95,3.59]
[1752479593388,5.04180075,167.01,166.95,3.59]
[1752479593580,14.19282425,167.02,166.96,5.9876]
[1752479593788,5.04180075,167.01,166.96,5.9876]
[1752479593989,14.19282425,167.02,166.97,3.59]
[1752479594185,3.5,167.01,166.97,5.9875]
[1752479594392,3.5,167.01,166.98,3.59]
[1752479595283,8.54180075,167.03,166.98,9.5771]
[1752479595591,9.1507235,167.03,166.94,3.1650235]
[1752479595783,3.5,167.01,167.0,3.59]
[1752479596088,3.5,167.01,166.88,372.45426774]
[1752479596089,5.9868,167.0,166.89,8.57924424]
[1752479596288,9.4868,167.0,166.94,3.59]
[1752479596689,3.5,167.0,166.96,3.59]
[1752479597292,3.5,167.0,166.98,3.59]
[1752479598094,6.6650235,167.02,166.99,3.59]
[1752479598487,3.5,167.01,166.99,3.59]
[1752479598687,3.5,167.01,167.0,3.59]
[1752479599093,3.5,167.01,166.98,5.9871]
[1752479599094,3.5,167.02,167.01,3.59]
[1752479599596,12.6501235,167.04,167.0,3.59]
[1752479599794,9.4851,167.04,167.0,3.59]
[1752479599988,5.9851,167.04,167.0,3.59]
[1752479600188,3.5,167.03,167.0,3.59]
[1752479602298,3.1650235,167.06,167.01,3.59]
[1752479602491,3.5,167.05,167.01,3.59]
[1752479602692,3.5,167.04,167.01,3.59]
[1752479602994,3.5,167.04,167.01,5.9861]
[1752479603196,12.6496235,167.06,167.02,3.59]
[1752479603387,6.6650235,167.06,167.02,3.59]
[1752479603590,3.1650235,167.06,167.02,3.59]
[1752479603795,3.5,167.05,167.02,3.59]
[1752479604191,9.4847,167.05,167.02,3.59]
[1752479604503,3.5,167.05,167.02,3.59]
[1752479604704,3.5,167.05,167.03,3.59]
[1752479605003,9.4847,167.05,167.04,3.59]
[1752479605704,5.9855,167.03,167.02,3.59]
[1752479605905,3.5,167.04,167.03,3.59]
[1752479607202,9.4852,167.04,167.03,3.59]
[1752479607604,182.36,167.08,167.03,3.59]
[1752479607810,3.5,167.05,167.04,3.59]
[1752479608608,9.4848,167.05,167.04,3.59]
[1752479609206,6.6650235,167.07,166.97,3.59]
[1752479609511,6.6650235,167.07,167.01,3.59]
[1752479609704,5.9845,167.06,167.02,5.9857]
[1752479609905,9.4845,167.06,167.03,3.59]
[1752479610514,3.5,167.06,167.03,5.9854]
[1752479610701,3.5,167.06,167.04,3.59]
[1752479610902,5.9841,167.07,167.04,3.59]
[1752479611107,9.4841,167.07,167.04,3.59]
[1752479611513,5.9841,167.07,167.05,3.59]
[1752479611711,9.4841,167.07,167.05,3.59]
[1752479612219,9.4841,167.07,167.06,3.59]
[1752479613211,9.4843,167.06,167.05,3.59]
[1752479613615,9.4843,167.06,167.02,5.9856]
[1752479613809,9.4843,167.06,167.05,3.59]
[1752479616612,5.9843,167.06,167.05,3.59]
[1752479617012,9.4543,167.06,167.05,3.59]
[1752479617215,3.47,167.06,167.05,3.59]
[1752479617814,9.1491235,167.07,167.05,3.59]
[1752479618021,12.6191235,167.07,167.05,3.59]
[1752479618614,9.4541,167.07,167.05,3.59]
[1752479618821,9.4541,167.07,167.06,3.49]
[1752479619721,5.9841,167.07,167.06,3.49]
[1752479619907,9.4541,167.07,167.06,3.49]
[1752479620617,5.9837,167.08,167.06,3.49]
[1752479620814,6.6350235,167.09,167.06,3.49]
[1752479621017,3.47,167.09,167.06,3.49]
[1752479621216,5.9826,167.11,167.06,3.1650235]
[1752479621516,3.47,167.12,167.07,3.49]
[1752479621716,9.4524,167.12,167.08,5.9836]
[1752479621918,3.47,167.12,167.09,3.49]
[1752479622313,3.47,167.13,167.05,3.49]
[1752479622518,3.47,167.12,167.05,3.49]
[1752479622711,6.6350235,167.12,167.05,3.49]
[1752479622916,5.9829,167.1,167.06,5.9842]
[1752479623116,3.47,167.11,167.07,3.49]
[1752479624119,5.9829,167.1,167.07,3.49]
[1752479624417,3.47,167.11,167.07,3.49]
[1752479625019,9.4528,167.11,167.07,3.49]
[1752479625323,3.47,167.11,167.07,3.49]
[1752479625520,9.4526,167.11,167.07,3.49]
[1752479626022,5.9821,167.13,167.09,3.49]
[1752479626220,3.47,167.15,167.09,3.49]
[1752479626816,5.9824,167.12,167.09,3.49]
[1752479627018,3.47,167.13,167.09,3.49]
[1752479627221,115.43480202,167.35,167.09,3.49]
[1752479627516,35.23225277,168.23,167.47,17.98]
[1752479627717,33.18422378,168.53,167.58,4.9192959]
[1752479627918,3.15039668,168.48,168.08,3.15039668]
[1752479628220,3.15039668,168.48,167.57,6.65232566]
[1752479628221,3.15039668,168.16,167.97,3.15039668]
[1752479628416,517.1,168.2,168.14,16.63081415]
[1752479628619,35.9268269,168.15,168.14,5.9459]
[1752479628920,517.1,168.29,167.86,33.26162831]
[1752479629119,8.69516743,168.08,167.88,3.49]
[1752479629418,8.69516743,168.16,167.94,8.69516743]
[1752479629631,517.1,168.18,167.95,21.47]
[1752479629923,3.47,168.11,167.82,33.26162831]
[1752479630126,3.47,168.11,167.78,33.26162831]
[1752479630514,3.47,168.11,167.7,33.26162831]
[1752479630822,8.69516743,167.91,167.7,33.26162831]
[1752479631121,8.69516743,167.89,167.69,8.69516743]
[1752479631324,8.69516743,167.89,167.65,8.69516743]
[1752479631325,8.69516743,167.86,167.65,8.69516743]
[1752479631519,8.69516743,167.86,167.57,33.26162831]
[1752479631711,124.0,167.88,167.67,8.69516743]
[1752479631712,82.41072057,167.88,167.67,8.69516743]
[1752479631916,8.69516743,167.86,167.72,3.49]
[1752479632325,91.105888,167.88,167.72,3.49]
[1752479632618,8.69516743,167.76,167.65,3.49]
[1752479632822,8.69516743,167.7,167.61,3.49]